fUST/lending_fUST_20240630
["ID","MTS","AMOUNT","RATE_DAILY","PERIOD"]
[330661612,1719697847299,-931.51,0.00016712,2]
[330661613,1719697847309,-337.43540898,0.00016712,2]
[330661614,1719697847319,-500.0,0.00016712,2]
[330661615,1719697847329,-795.77,0.00016712,2]
[330661616,1719697847339,-646.49073318,0.00016712,2]
[330661617,1719697847348,-500.0,0.00016712,2]
[330661618,1719697847357,-500.0,0.00016712,2]
[330661619,1719697847371,-500.0,0.00016712,2]
[330661620,1719697847380,-500.0,0.00016712,2]
[330661621,1719697847389,-500.0,0.00016712,2]
[330661622,1719697847398,-500.0,0.00016712,2]
[330661623,1719697847408,-754.97,0.00016712,2]
[330661624,1719697847417,-1509.19,0.00016712,2]
[330661625,1719697847426,-901.69,0.00016712,2]
[330661626,1719697847436,-666.02,0.00016712,2]
[330661627,1719697847448,-500.0,0.00016712,2]
[330661628,1719697847458,-500.0,0.00016712,2]
[330661629,1719697847467,-500.0,0.00016712,2]
[330661630,1719697847477,-1214.1,0.00016712,2]
[330661631,1719697847486,-2204.93,0.00016712,2]
[330661632,1719697847494,-1003.23,0.00016712,2]
[330661633,1719697847504,-712.7,0.00016712,2]
[330661634,1719697847513,-500.0,0.00016712,2]
[330661635,1719697847522,-500.0,0.00016712,2]
[330661636,1719697847532,-758.58,0.00016712,2]
[330661637,1719697847540,-500.0,0.00016712,2]
[330661638,1719697847550,-1238.79,0.00016712,2]
[330661639,1719697847559,-500.0,0.00016712,2]
[330661640,1719697847569,-500.0,0.00016712,2]
[330661641,1719697847578,-500.0,0.00016712,2]
[330661642,1719697847588,-500.0,0.00016712,2]
[330661643,1719697847597,-732.23,0.00016712,2]
[330661644,1719697847606,-1181.86,0.00016712,2]
[330661645,1719697847616,-500.0,0.00016712,2]
[330661646,1719697847625,-500.0,0.00016712,2]
[330661647,1719697847634,-1196.74,0.00016712,2]
[330661648,1719697847643,-500.0,0.00016712,2]
[330661649,1719697847652,-501.78,0.00016712,2]
[330661650,1719697847661,-500.0,0.00016712,2]
[330661651,1719697847671,-500.0,0.00016712,2]
[330661652,1719697847680,-500.0,0.00016712,2]
[330661653,1719697847689,-500.0,0.00016712,2]
[330661654,1719697847699,-500.0,0.00016712,2]
[330661655,1719697847708,-640.90668797,0.00016712,2]
[330661658,1719697847806,-505.06419593,0.00016712,2]
[330661659,1719697847817,-500.0,0.00016712,2]
[330661660,1719697847827,-1316.4,0.00016712,2]
[330661661,1719697847837,-334.27053557,0.00016712,2]
[330661662,1719697847846,-500.0,0.00016712,2]
[330661663,1719697847856,-500.0,0.00016712,2]
[330661664,1719697847865,-500.0,0.00016712,2]
[330661665,1719697847874,-524.31,0.00016712,2]
[330661666,1719697847883,-500.72786213,0.00016712,2]
[330661667,1719697847893,-500.0,0.00016712,2]
[330661668,1719697847903,-2594.77,0.00016712,2]
[330661669,1719697847912,-500.0,0.00016712,2]
[330661670,1719697847922,-502.12710905,0.00016712,2]
[330661671,1719697847931,-500.0,0.00016712,2]
[330661672,1719697847941,-500.0,0.00016712,2]
[330661673,1719697847950,-778.0,0.00016712,2]
[330661674,1719697847960,-500.0,0.00016712,2]
[330661675,1719697847970,-500.0,0.00016712,2]
[330661676,1719697847979,-476.93679426,0.00016712,2]
[330661677,1719697847988,-500.0,0.00016712,2]
[330661678,1719697847997,-514.77937049,0.00016712,2]
[330661679,1719697848007,-1092.91,0.00016712,2]
[330661680,1719697848016,-627.95,0.00016712,2]
[330661681,1719697848026,-500.85591091,0.00016712,2]
[330661682,1719697848035,-500.0,0.00016712,2]
[330661683,1719697848044,-500.0,0.00016712,2]
[330661684,1719697848054,-1350.96,0.00016712,2]
[330661685,1719697848063,-500.0,0.00016712,2]
[330661686,1719697848072,-500.0,0.00016712,2]
[330661687,1719697848082,-503.37965649,0.00016712,2]
[330661688,1719697848091,-500.0,0.00016712,2]
[330661689,1719697848100,-510.373498,0.00016712,2]
[330661690,1719697848110,-500.0,0.00016712,2]
[330661691,1719697848119,-719.07,0.00016712,2]
[330661692,1719697848128,-500.0,0.00016712,2]
[330661693,1719697848138,-500.0,0.00016712,2]
[330661694,1719697848147,-500.0,0.00016712,2]
[330661695,1719697848156,-153.67606135,0.00016712,2]
[330661696,1719697848166,-500.0,0.00016712,2]
[330661697,1719697848175,-500.9453637,0.00016712,2]
[330661698,1719697848185,-500.0,0.00016712,2]
[330661699,1719697848195,-500.0,0.00016712,2]
[330661700,1719697848204,-1282.68,0.00016712,2]
[330661701,1719697848214,-642.89628404,0.00016712,2]
[330661702,1719697848223,-500.0,0.00016712,2]
[330661703,1719697848232,-500.0,0.00016712,2]
[330661704,1719697848241,-508.1037045,0.00016712,2]
[330661705,1719697848251,-2310.21,0.00016712,2]
[330661706,1719697848261,-613.39,0.00016712,2]
[330661707,1719697848270,-501.638279,0.00016712,2]
[330661708,1719697848279,-1113.08,0.00016712,2]
[330661709,1719697848289,-500.0,0.00016712,2]
[330661710,1719697848299,-1475.0,0.00016712,2]
[330661711,1719697848308,-500.0,0.00016712,2]
[330661712,1719697848318,-591.82,0.00016712,2]
[330661713,1719697848327,-500.0,0.00016712,2]
[330661714,1719697848336,-500.0,0.00016712,2]
[330661715,1719697848345,-548.13,0.00016712,2]
[330661716,1719697848354,-500.0,0.00016712,2]
[330661717,1719697848366,-500.0,0.00016712,2]
[330661718,1719697848376,-2692.72,0.00016712,2]
[330661719,1719697848385,-500.0,0.00016712,2]
[330661720,1719697848395,-1615.34,0.00016712,2]
[330661721,1719697848404,-500.0,0.00016712,2]
[330661722,1719697848414,-500.0,0.00016712,2]
[330661723,1719697848423,-1086.18,0.00016712,2]
[330661724,1719697848432,-500.0,0.00016712,2]
[330661725,1719697848443,-500.0,0.00016712,2]
[330661726,1719697848453,-500.0,0.00016712,2]
[330661727,1719697848462,-500.0,0.00016712,2]
[330661728,1719697848471,-500.0,0.00016712,2]
[330661729,1719697848481,-500.0,0.00016712,2]
[330661730,1719697848490,-500.0,0.00016712,2]
[330661731,1719697848499,-500.0,0.00016712,2]
[330661732,1719697848508,-613.91,0.00016712,2]
[330661733,1719697848518,-500.0,0.00016712,2]
[330661734,1719697848527,-500.0,0.00016712,2]
[330661735,1719697848537,-500.0,0.00016712,2]
[330661736,1719697848546,-500.0,0.00016712,2]
[330661737,1719697848555,-462.76023727,0.00016712,2]
[330661738,1719697848564,-938.39,0.00016712,2]
[330661739,1719697848573,-500.0,0.00016712,2]
[330661740,1719697848582,-500.0,0.00016712,2]
[330661741,1719697848591,-2837.98,0.00016712,2]
[330661742,1719697848600,-570.9799073,0.00016712,2]
[330661743,1719697848609,-500.7410435,0.00016712,2]
[330661744,1719697848617,-500.0,0.00016712,2]
[330661745,1719697848627,-500.0,0.00016712,2]
[330661746,1719697848636,-500.0,0.00016712,2]
[330661747,1719697848645,-448.10317807,0.00016712,2]
[330661748,1719697848655,-541.21409658,0.00016712,2]
[330661749,1719697848664,-579.32,0.00016712,2]
[330661750,1719697848674,-500.0,0.00016712,2]
[330661751,1719697848683,-500.0,0.00016712,2]
[330661752,1719697848692,-1459.06,0.00016712,2]
[330661753,1719697848701,-500.0,0.00016712,2]
[330661754,1719697848711,-500.0,0.00016712,2]
[330661755,1719697848720,-665.96,0.00016712,2]
[330661756,1719697848729,-500.0,0.00016712,2]
[330661757,1719697848738,-500.0,0.00016712,2]
[330661758,1719697848747,-500.0,0.00016712,2]
[330661759,1719697848756,-500.0,0.00016712,2]
[330661760,1719697848765,-500.0,0.00016712,2]
[330661761,1719697848774,-510.73706533,0.00016712,2]
[330661762,1719697848783,-501.26004188,0.00016712,2]
[330661763,1719697848792,-1563.45,0.00016712,2]
[330661764,1719697848801,-500.0,0.00016712,2]
[330661765,1719697848810,-500.0,0.00016712,2]
[330661766,1719697848820,-543.68326571,0.00016712,2]
[330661767,1719697848829,-925.9,0.00016712,2]
[330661768,1719697848838,-574.85,0.00016712,2]
[330661769,1719697848847,-502.30305553,0.00016712,2]
[330661770,1719697848856,-528.77,0.00016712,2]
[330661771,1719697848865,-501.81901475,0.00016712,2]
[330661772,1719697848874,-500.0,0.00016712,2]
[330661773,1719697848883,-1564.39,0.00016712,2]
[330661774,1719697848892,-500.0,0.00016712,2]
[330661775,1719697848901,-565.39,0.00016712,2]
[330661776,1719697848910,-441.47126655,0.00016712,2]
[330661777,1719697848919,-1299.25,0.00016712,2]
[330661778,1719697848928,-506.30746914,0.00016712,2]
[330661779,1719697848937,-500.0,0.00016712,2]
[330661780,1719697848946,-1981.31,0.00016712,2]
[330661781,1719697848955,-801.55,0.00016712,2]
[330661782,1719697848964,-500.0,0.00016712,2]
[330661783,1719697848973,-500.8475704,0.00016712,2]
[330661784,1719697848983,-500.0,0.00016712,2]
[330661785,1719697848992,-500.0,0.00016712,2]
[330661786,1719697849001,-500.0,0.00016712,2]
[330661787,1719697849011,-500.0,0.00016712,2]
[330661788,1719697849019,-502.82679596,0.00016712,2]
[330661789,1719697849029,-500.0,0.00016712,2]
[330661790,1719697849038,-500.0,0.00016712,2]
[330661791,1719697849047,-500.0,0.00016712,2]
[330661792,1719697849059,-500.0,0.00016712,2]
[330661793,1719697849068,-500.0,0.00016712,2]
[330661794,1719697849078,-500.0,0.00016712,2]
[330661795,1719697849087,-500.0,0.00016712,2]
[330661796,1719697849097,-500.0,0.00016712,2]
[330661797,1719697849106,-2086.48,0.00016712,2]
[330661798,1719697849195,-305.54442398,0.00016712,2]
[330661799,1719697849205,-500.0,0.00016712,2]
[330661800,1719697849214,-500.0,0.00016712,2]
[330661801,1719697849223,-500.0,0.00016712,2]
[330661802,1719697849233,-1595.78,0.00016712,2]
[330661803,1719697849242,-680.63,0.00016712,2]
[330661804,1719697849251,-500.25818118,0.00016712,2]
[330661805,1719697849260,-500.0,0.00016712,2]
[330661806,1719697849269,-3749.68,0.00016712,2]
[330661807,1719697849278,-500.0,0.00016712,2]
[330661808,1719697849287,-500.0,0.00016712,2]
[330661809,1719697849297,-2798.96,0.00016712,2]
[330661810,1719697849306,-501.78897202,0.00016712,2]
[330661811,1719697849317,-251.35181159,0.00016712,2]
[330661812,1719697849326,-500.0,0.00016712,2]
[330661813,1719697849334,-500.0,0.00016712,2]
[330661814,1719697849346,-501.39,0.00016712,2]
[330661815,1719697849355,-500.0,0.00016712,2]
[330661816,1719697849364,-500.0,0.00016712,2]
[330661817,1719697849377,-458.00126164,0.00016712,2]
[330661818,1719697849386,-500.0,0.00016712,2]
[330661819,1719697849395,-500.0,0.00016712,2]
[330661820,1719697849404,-500.0,0.00016712,2]
[330661821,1719697849413,-500.0,0.00016712,2]
[330661822,1719697849422,-500.0,0.00016712,2]
[330661823,1719697849431,-1505.31,0.00016712,2]
[330661824,1719697849441,-854.72,0.00016712,2]
[330661825,1719697849453,-513.68013165,0.00016712,2]
[330661826,1719697849462,-500.0,0.00016712,2]
[330661827,1719697849472,-500.0,0.00016712,2]
[330661828,1719697849481,-427.64892625,0.00016712,2]
[330661829,1719697849491,-858.92,0.00016712,2]
[330661830,1719697849500,-500.0,0.00016712,2]
[330661831,1719697849509,-500.0,0.00016712,2]
[330661832,1719697849519,-500.0,0.00016712,2]
[330661833,1719697849529,-500.0,0.00016712,2]
[330661834,1719697849539,-312.28935339,0.00016713,2]
[330661835,1719697849548,-153.0,0.000168,2]
[330661836,1719697849557,-153.0,0.000168,2]
[330661837,1719697849567,-153.0,0.000168,2]
[330661838,1719697849576,-153.0,0.000168,2]
[330661839,1719697849586,-458.9999999,0.000168,2]
[330661840,1719697849595,-153.0,0.000168,2]
[330661841,1719697849604,-2798.96,0.00016809,2]
[330661842,1719697849613,-2798.96,0.00016809,2]
[330661843,1719697849623,-500.0,0.0001681,2]
[330661844,1719697849633,-501.06382033,0.0001681,2]
[330661845,1719697849643,-501.0582881,0.0001681,2]
[330661846,1719697849652,-504.57188163,0.0001681,2]
[330661847,1719697849662,-509.96316029,0.0001681,2]
[330661848,1719697849672,-500.0,0.0001681,2]
[330661849,1719697849682,-500.0,0.0001681,2]
[330661850,1719697849691,-500.0,0.0001681,2]
[330661851,1719697849700,-509.29556882,0.0001681,2]
[330661852,1719697849710,-547.15985234,0.0001681,2]
[330661853,1719697849719,-500.0,0.0001681,2]
[330661854,1719697849728,-500.0,0.0001681,2]
[330661855,1719697849737,-207.49128744,0.0001681,2]
[330661856,1719697849746,-500.0,0.0001681,2]
[330661857,1719697849755,-500.0,0.0001681,2]
[330661858,1719697849764,-500.0,0.0001681,2]
[330661859,1719697849774,-682.39,0.0001681,2]
[330661860,1719697849783,-500.0,0.0001681,2]
[330661861,1719697849792,-500.0,0.0001681,2]
[330661862,1719697849802,-500.0,0.0001681,2]
[330661863,1719697849811,-500.0,0.0001681,2]
[330661864,1719697849825,-500.0,0.0001681,2]
[330661865,1719697849834,-500.0,0.0001681,2]
[330661866,1719697849845,-500.0,0.0001681,2]
[330661867,1719697849854,-500.0,0.0001681,2]
[330661868,1719697849863,-500.0,0.0001681,2]
[330661869,1719697849872,-500.0,0.0001681,2]
[330661870,1719697849881,-151.0,0.0001681,2]
[330661871,1719697849891,-2850.59,0.0001681,2]
[330661872,1719697849900,-500.0,0.0001681,2]
[330661873,1719697849910,-624.01,0.0001681,2]
[330661874,1719697849919,-348.50281369,0.0001681,2]
[330661875,1719697849928,-500.0,0.0001681,2]
[330661876,1719697849938,-516.28,0.0001681,2]
[330661877,1719697849947,-499.26247927,0.0001681,2]
[330661878,1719697849956,-546.16,0.0001681,2]
[330661879,1719697849965,-500.0,0.0001681,2]
[330661880,1719697849975,-500.0,0.0001681,2]
[330661881,1719697849984,-590.08,0.0001681,2]
[330661882,1719697849993,-1054.14,0.0001681,2]
[330661883,1719697850002,-2798.96,0.0001681,2]
[330661884,1719697850012,-507.65970843,0.0001681,2]
[330661885,1719697850021,-500.0,0.0001681,2]
[330661886,1719697850031,-500.0,0.0001681,2]
[330661887,1719697850040,-500.0,0.00016811,2]
[330661888,1719697850050,-500.0,0.00016811,2]
[330661889,1719697850059,-1851.8,0.00016811,2]
[330661890,1719697850071,-500.0,0.00016811,2]
[330661891,1719697850081,-501.84016444,0.00016811,2]
[330661892,1719697850090,-500.0,0.00016811,2]
[330661893,1719697850099,-500.0,0.00016811,2]
[330661894,1719697850109,-514.12258312,0.00016811,2]
[330661895,1719697850119,-1000.0,0.00016811,2]
[330661896,1719697850128,-504.17035363,0.00016811,2]
[330661897,1719697850137,-500.0,0.00016811,2]
[330661898,1719697850147,-500.0,0.00016811,2]
[330661899,1719697850156,-1009.61,0.00016811,2]
[330661900,1719697850167,-500.0,0.00016811,2]
[330661901,1719697850175,-507.26833086,0.00016811,2]
[330661902,1719697850186,-500.0,0.00016811,2]
[330661903,1719697850195,-500.0,0.00016811,2]
[330661904,1719697850205,-500.0,0.00016811,2]
[330661905,1719697850214,-500.0,0.00016811,2]
[330661906,1719697850223,-500.0,0.00016811,2]
[330661907,1719697850232,-500.0,0.00016811,2]
[330661908,1719697850241,-668.03,0.00016811,2]
[330661909,1719697850250,-235.35761024,0.00016811,2]
[330661910,1719697850260,-233.23839383,0.00016811,2]
[330661911,1719697850270,-500.0,0.00016811,2]
[330661912,1719697850279,-500.0,0.00016811,2]
[330661913,1719697850288,-500.0,0.00016811,2]
[330661914,1719697850297,-500.0,0.00016811,2]
[330661915,1719697850306,-500.0,0.00016811,2]
[330661916,1719697850316,-500.0,0.00016811,2]
[330661917,1719697850325,-500.0,0.00016811,2]
[330661918,1719697850334,-500.0,0.00016811,2]
[330661919,1719697850343,-500.0,0.00016811,2]
[330661920,1719697850352,-212.51315314,0.00016811,2]
[330661921,1719697850360,-500.0,0.00016811,2]
[330661922,1719697850375,-500.0,0.00016811,2]
[330661923,1719697850384,-500.0,0.00016811,2]
[330661924,1719697850393,-500.0,0.00016811,2]
[330661925,1719697850401,-399.32131195,0.00016811,2]
[330661926,1719697850411,-500.0,0.00016811,2]
[330661927,1719697850496,-500.0,0.00016811,2]
[330661928,1719697850506,-500.0,0.00016811,2]
[330661929,1719697850516,-500.0,0.00016811,2]
[330661930,1719697850525,-594.02498517,0.00016811,2]
[330661931,1719697850536,-500.0,0.00016811,2]
[330661932,1719697850545,-500.0,0.00016811,2]
[330661933,1719697850554,-500.0,0.00016811,2]
[330661934,1719697850563,-500.0,0.00016811,2]
[330661935,1719697850574,-500.0,0.00016811,2]
[330661936,1719697850583,-500.0,0.00016811,2]
[330661937,1719697850592,-569.77,0.00016811,2]
[330661938,1719697850602,-546.41,0.00016811,2]
[330661939,1719697850611,-500.0,0.00016811,2]
[330661940,1719697850620,-500.0,0.00016811,2]
[330661941,1719697850629,-500.0,0.00016811,2]
[330661942,1719697850639,-500.0,0.00016811,2]
[330661943,1719697850648,-500.0,0.00016811,2]
[330661944,1719697850658,-588.97,0.00016811,2]
[330661945,1719697850667,-500.0,0.00016811,2]
[330661946,1719697850676,-500.0,0.00016811,2]
[330661947,1719697850686,-503.24646411,0.00016811,2]
[330661948,1719697850696,-500.0,0.00016811,2]
[330661949,1719697850705,-500.0,0.00016811,2]
[330661950,1719697850715,-500.0,0.00016811,2]
[330661951,1719697850724,-500.0,0.00016811,2]
[330661952,1719697850733,-500.0,0.00016811,2]
[330661953,1719697850743,-500.0,0.00016811,2]
[330661954,1719697850752,-1450.8,0.00016811,2]
[330661955,1719697850762,-500.0,0.00016811,2]
[330661956,1719697850772,-556.35,0.00016811,2]
[330661957,1719697850782,-306.96994833,0.00016811,2]
[330661958,1719697850791,-847.93,0.00016811,2]
[330661959,1719697850801,-500.0,0.00016811,2]
[330661960,1719697850811,-555.68,0.00016811,2]
[330661961,1719697850820,-500.0,0.00016811,2]
[330661962,1719697850830,-502.23423063,0.00016811,2]
[330661963,1719697850839,-761.21,0.00016811,2]
[330661964,1719697850848,-500.0,0.00016811,2]
[330661965,1719697850858,-772.69,0.00016811,2]
[330661966,1719697850867,-697.73,0.00016811,2]
[330661967,1719697850876,-558.46,0.00016811,2]
[330661968,1719697850886,-500.0,0.00016811,2]
[330661969,1719697850895,-500.0,0.00016811,2]
[330661970,1719697850904,-500.0,0.00016811,2]
[330661971,1719697850914,-500.58786215,0.00016811,2]
[330661972,1719697850923,-500.0,0.00016811,2]
[330661973,1719697850932,-394.3736668,0.00016811,2]
[330661974,1719697850941,-500.0,0.00016811,2]
[330661975,1719697850951,-1093.75,0.00016811,2]
[330661976,1719697850960,-500.0,0.00016811,2]
[330661977,1719697850969,-500.0,0.00016811,2]
[330661978,1719697850978,-510.339056,0.00016811,2]
[330661979,1719697850987,-221.804189,0.00016811,2]
[330661980,1719697850996,-500.0,0.00016811,2]
[330661981,1719697851006,-221.804189,0.00016811,2]
[330661982,1719697851015,-519.41,0.00016811,2]
[330661983,1719697851024,-500.0,0.00016811,2]
[330661984,1719697851033,-500.0,0.00016811,2]
[330661985,1719697851042,-500.0,0.00016811,2]
[330661986,1719697851052,-500.0,0.00016811,2]
[330661987,1719697851061,-500.0,0.00016811,2]
[330661988,1719697851071,-508.78307288,0.00016811,2]
[330661989,1719697851080,-501.47082297,0.00016811,2]
[330661990,1719697851089,-500.0,0.00016811,2]
[330661991,1719697851099,-500.0,0.00016811,2]
[330661992,1719697851108,-558.43315913,0.00016811,2]
[330661993,1719697851117,-500.0,0.00016811,2]
[330661994,1719697851126,-500.0,0.00016811,2]
[330661995,1719697851135,-500.0,0.00016811,2]
[330661996,1719697851145,-500.0,0.00016811,2]
[330661997,1719697851154,-500.0,0.00016811,2]
[330661998,1719697851163,-500.0,0.00016811,2]
[330661999,1719697851172,-501.567329,0.00016811,2]
[330662000,1719697851182,-500.34301316,0.00016811,2]
[330662001,1719697851192,-500.0,0.00016811,2]
[330662002,1719697851201,-500.0,0.00016811,2]
[330662003,1719697851210,-500.0,0.00016811,2]
[330662004,1719697851220,-500.0,0.00016811,2]
[330662005,1719697851229,-500.0,0.00016811,2]
[330662006,1719697851238,-504.06629619,0.00016811,2]
[330662007,1719697851247,-500.0,0.00016811,2]
[330662008,1719697851256,-501.69221528,0.00016811,2]
[330662009,1719697851266,-500.89681316,0.00016811,2]
[330662010,1719697851275,-500.0,0.00016811,2]
[330662011,1719697851284,-500.0,0.00016811,2]
[330662012,1719697851293,-500.0,0.00016811,2]
[330662013,1719697851303,-500.0,0.00016811,2]
[330662014,1719697851312,-500.0,0.00016811,2]
[330662015,1719697851322,-733.97,0.00016811,2]
[330662016,1719697851331,-500.0,0.00016811,2]
[330662017,1719697851340,-151.0,0.00016811,2]
[330662018,1719697851350,-500.0,0.00016811,2]
[330662019,1719697851359,-512.6,0.00016811,2]
[330662020,1719697851372,-500.0,0.00016811,2]
[330662021,1719697851381,-500.0,0.00016811,2]
[330662022,1719697851390,-270.22035159,0.00016811,2]
[330662023,1719697851399,-500.0,0.00016811,2]
[330662024,1719697851409,-500.0,0.00016811,2]
[330662025,1719697851419,-982.21,0.00016811,2]
[330662026,1719697851428,-500.0,0.00016811,2]
[330662027,1719697851437,-500.0,0.00016811,2]
[330662028,1719697851448,-500.0,0.00016812,2]
[330662029,1719697851457,-500.0,0.00016812,2]
[330662030,1719697851467,-3366.55,0.00016812,2]
[330662031,1719697851476,-500.0,0.00016812,2]
[330662032,1719697851485,-500.0,0.00016812,2]
[330662033,1719697851495,-500.0,0.00016812,2]
[330662034,1719697851504,-500.0,0.00016812,2]
[330662035,1719697851514,-500.0,0.00016812,2]
[330662036,1719697851523,-500.0,0.00016812,2]
[330662037,1719697851532,-619.1,0.00016812,2]
[330662038,1719697851542,-1168.51,0.00016812,2]
[330662039,1719697851551,-500.0,0.00016812,2]
[330662040,1719697851560,-503.36177256,0.00016812,2]
[330662041,1719697851569,-2328.34,0.00016812,2]
[330662042,1719697851578,-500.0,0.00016812,2]
[330662043,1719697851588,-908.25,0.00016812,2]
[330662044,1719697851597,-975.44,0.00016812,2]
[330662045,1719697851606,-2924.75,0.00016812,2]
[330662046,1719697851691,-500.0,0.00016812,2]
[330662047,1719697851700,-2798.96,0.00016812,2]
[330662048,1719697851710,-2798.96,0.00016812,2]
[330662049,1719697851720,-500.0,0.00016812,2]
[330662050,1719697851730,-513.08407587,0.00016812,2]
[330662051,1719697851739,-221.804189,0.00016813,2]
[330662052,1719697851749,-221.804189,0.00016813,2]
[330662053,1719697851759,-1560.58,0.00016813,2]
[330662054,1719697851768,-151.0,0.00016813,2]
[330662055,1719697851777,-711.22,0.00016813,2]
[330662056,1719697851786,-2798.96,0.00016813,2]
[330662057,1719697851796,-2798.96,0.00016813,2]
[330662058,1719697851805,-21661.24,0.00016813,2]
[330662059,1719697851816,-500.0,0.00016814,2]
[330662060,1719697851826,-252.94831994,0.00016814,2]
[330662061,1719697851835,-511.74915804,0.00016814,2]
[330662062,1719697851844,-500.0,0.00016814,2]
[330662063,1719697851853,-501.8011841,0.00016814,2]
[330662064,1719697851862,-500.0,0.00016814,2]
[330662065,1719697851871,-500.0,0.00016814,2]
[330662066,1719697851880,-500.0,0.00016814,2]
[330662067,1719697851889,-500.0,0.00016814,2]
[330662068,1719697851898,-565.27,0.00016814,2]
[330662069,1719697851908,-500.4929191,0.00016814,2]
[330662070,1719697851917,-661.15,0.00016814,2]
[330662071,1719697851926,-1589.77,0.00016814,2]
[330662072,1719697851935,-221.804189,0.00016814,2]
[330662073,1719697851945,-221.804189,0.00016814,2]
[330662074,1719697851954,-500.0,0.00016814,2]
[330662075,1719697851963,-500.0,0.00016814,2]
[330662076,1719697851972,-500.0,0.00016814,2]
[330662077,1719697851981,-2106.87,0.00016814,2]
[330662078,1719697851990,-504.8,0.00016814,2]
[330662079,1719697851999,-1641.41,0.00016814,2]
[330662080,1719697852009,-2819.93,0.00016814,2]
[330662081,1719697852018,-1302.78,0.00016814,2]
[330662082,1719697852028,-500.0,0.00016814,2]
[330662083,1719697852037,-746.67,0.00016814,2]
[330662084,1719697852047,-908.43,0.00016814,2]
[330662085,1719697852056,-500.0,0.00016814,2]
[330662086,1719697852065,-685.36,0.00016814,2]
[330662087,1719697852074,-500.0,0.00016814,2]
[330662088,1719697852083,-501.84896035,0.00016814,2]
[330662089,1719697852093,-500.0,0.00016814,2]
[330662090,1719697852102,-500.47,0.00016814,2]
[330662091,1719697852111,-500.0,0.00016814,2]
[330662092,1719697852120,-711.05,0.00016814,2]
[330662093,1719697852129,-981.79,0.00016814,2]
[330662094,1719697852139,-2798.96,0.00016814,2]
[330662095,1719697852148,-2798.96,0.00016814,2]
[330662096,1719697852157,-500.0,0.00016815,2]
[330662097,1719697852166,-614.06,0.00016815,2]
[330662098,1719697852176,-500.0,0.00016815,2]
[330662099,1719697852188,-30096.78,0.00016815,2]
[330662100,1719697852210,-903.3,0.00016815,2]
[330662101,1719697852226,-500.0,0.00016815,2]
[330662102,1719697852245,-930.1,0.00016815,2]
[330662103,1719697852266,-844.53,0.00016815,2]
[330662104,1719697852285,-500.0,0.00016815,2]
[330662105,1719697852303,-2202.87,0.00016815,2]
[330662106,1719697852319,-3555.31,0.00016815,2]
[330662107,1719697852338,-13082.47,0.00016815,2]
[330662108,1719697852356,-500.0,0.00016815,2]
[330662109,1719697852381,-385.0158871,0.00016815,2]
[330662110,1719697852393,-2806.2,0.00016815,2]
[330662111,1719697852412,-500.0,0.00016815,2]
[330662112,1719697852427,-2156.3,0.00016815,2]
[330662113,1719697852442,-151.0,0.00016815,2]